Cogmind - Beta 13 @@@ ROGUE MODE // 2024.07.16 @ 00:11:21 Player: Venar246 Result: Destroyed by D-53 Grenadier with Mini Grenade Launcher Performance ------------- Evolutions (0) 0 Regions Visited (3) 600 Robots Destroyed (25) 125 Value Destroyed (569) 569 Prototype IDs (24) 480 Alien Tech Used (0) 0 Bonus (300) 300 TOTAL SCORE: 2074 Bonus ------- Aligned with FarCom 300 Cogmind --------- Core Integrity 0/250 Matter 285/300 Energy 100/100 System Corruption 0% Temperature Cool (0) Movement Walking (400) Ox4 Location -10/Exiles Parts ------- > --- POWER (1) -------- (None) > --- PROPULSION (2) --- Aluminum Leg Aluminum Leg > --- UTILITY (2) ------ Huge Storage Unit Core Shielding > --- WEAPON (2) ------- Improved Medium Laser > --- INVENTORY (25) --- Light Nuclear Core VTOL Module VTOL Module VTOL Module VTOL Module Lightpack 2.0 ECM Suite Core Shielding Hacking Suite Heavy EM Pulse Gun Spread Laser Spread Laser Rocket Launcher Peak State ------------ > --- POWER ------------ (None) > --- PROPULSION ------- Aluminum Leg Aluminum Leg > --- UTILITY ---------- Huge Storage Unit Core Shielding > --- WEAPON ----------- Improved Medium Laser Improved Medium Laser > --- INVENTORY -------- Light Nuclear Core VTOL Module VTOL Module VTOL Module VTOL Module Lightpack 2.0 ECM Suite Core Shielding Hacking Suite Heavy EM Pulse Gun Spread Laser Spread Laser Rocket Launcher [Rating: 15] Favorites ----------- Power Ion Engine Engine Ion Engine Propulsion Aluminum Leg Leg Aluminum Leg Utility Huge Storage Unit Storage Huge Storage Unit Protection Core Shielding Weapon Improved Medium Laser Energy Gun Improved Medium Laser Ballistic Gun Light Assault Rifle Launcher Rocket Launcher Build | -11 -10 -10 -10 ------- Run | Yrd Mat Min Exi Slots Evolved . | . . . . Power . | . . . . Propulsion . | . . . . Utility . | . . . . Weapon . | . . . . Parts Attached 19 | 6 10 3 . Power 1 | 1 . . . Engine 1 | 1 . . . Core . | . . . . Reactor . | . . . . Propulsion 6 | 2 2 2 . Treads . | . . . . Leg 6 | 2 2 2 . Wheel . | . . . . Hover . | . . . . Flight . | . . . . Utility 4 | 1 2 1 . Device . | . . . . Storage 3 | 1 2 . . Processor . | . . . . Hackware . | . . . . Protection 1 | . . 1 . Artifact . | . . . . Weapon 8 | 2 6 . . Energy Gun 6 | 1 5 . . Energy Cannon . | . . . . Ballistic Gun 1 | 1 . . . Ballistic Cannon . | . . . . Launcher 1 | . 1 . . Special Weapon . | . . . . Impact Weapon . | . . . . Slashing Weapon . | . . . . Piercing Weapon . | . . . . Special Melee Weapon . | . . . . Unidentified Prototypes 1 | . 1 . . Parts Lost 6 | . 2 3 1 Power 1 | . . 1 . Propulsion 3 | . 1 2 . Utility . | . . . . Weapon 2 | . 1 . 1 Highest Loss Streak 2 | . 2 2 1 To Critical Strikes . | . . . . Average Slot Usage (%) 69 | . 84 62 85 Engine 2 | . 14 . . Leg 18 | . 27 14 28 Storage 14 | . 14 14 14 Protection 5 | . . 4 14 Energy Gun 26 | . 22 28 28 Naked Turns . | . . . . Heaviest Build 91 | 13 91 87 87 Greatest Support 20 | 20 20 20 20 Greatest Overweight (x) 28 | . 4 28 4 Average Overweight (x) 4 | . 1 7 4 Largest Inventory Capacity 25 | 8 25 25 25 Average Capacity 23 | 6 16 25 25 Most Carried 15 | 2 10 12 15 Average Carried 10 | . 9 10 12 Final Capacity 25 | 8 25 25 25 Final Carried 15 | 2 10 12 15 Class Distribution -------------------- 100% | Mutant Dominant Class ---------------- Mutant | -10/Materials Mutant | -10/Mines Mutant | -10/Exiles Resources | -11 -10 -10 -10 ----------- Run | Yrd Mat Min Exi Matter Collected 394 | 86 240 68 . Remotely . | . . . . Salvage Created 782 | . 499 283 . Parts 52 | . 31 21 . Haulers Intercepted 1 | . 1 . . Recyclers Shooed 1 | . 1 . . Parts Field Recycled . | . . . . Retrieved Matter . | . . . . Parts Self-Destructed . | . . . . Prevented . | . . . . Kills | -11 -10 -10 -10 ------- Run | Yrd Mat Min Exi Combat Hostiles Destroyed 20 | . 12 8 . Guns 18 | . 10 8 . AOE 2 | . 2 . . Classes Destroyed 6 | . 5 1 . Hauler 1 | . 1 . . Recycler 1 | . . 1 . Operator 1 | . 1 . . Watcher 2 | . 2 . . Swarmer 9 | . 3 6 . Grunt 11 | . 9 2 . Best Kill Streak 8 | . 8 3 . Combat Bots Only 5 | . 5 3 . Max Kills in Single Turn 2 | . 1 2 . Gunslinging . | . . . . Exploded 1 | . 1 . . Melee . | . . . . Uniques/NPCs Destroyed . | . . . . Combat | -11 -10 -10 -10 -------- Run | Yrd Mat Min Exi Hostile Shots Fired 121 | . 68 52 1 Missed 34 | . 19 15 . Damage Taken 1073 | . 662 365 46 Core 264 | . 157 80 27 Absorbed by Shields . | . . . . Redirected to Shielding 10 | . . 6 4 Core Remaining (%) 100 | 100 . . . Volleys Fired 65 | . 45 20 . Largest 2 | . 2 2 . Hottest 112 | . 112 112 . Shots Fired 120 | . 80 40 . Gun 118 | . 78 40 . Cannon . | . . . . Launcher 2 | . 2 . . Special . | . . . . Kinetic 40 | . 40 . . Thermal 78 | . 38 40 . Explosive 2 | . 2 . . Electromagnetic . | . . . . Robot Hit Streak 15 | . 15 4 . Robot Miss Streak 5 | . 5 5 . Penetration Max . | . . . . Secondary Targets 3 | . 2 1 . Max Gunslinging Chain 1 | . 1 1 . Shots Hit Robots 73 | . 56 17 . Core Hits 48 | . 37 11 . Critical Kills . | . . . . Critical Parts Destroyed 1 | . 1 . . Critical Strikes 3 | . 2 1 . Burn 2 | . 1 1 . Destroy 1 | . 1 . . Melee Attacks . | . . . . Impact . | . . . . Slashing . | . . . . Piercing . | . . . . Sneak Attacks . | . . . . Combat Hostiles . | . . . . Follow-up Attacks . | . . . . Damage Inflicted 1163 | . 838 325 . Guns 917 | . 609 308 . Cannons . | . . . . Explosions 216 | . 216 . . Melee . | . . . . Ramming 30 | . 13 17 . Kinetic 238 | . 238 . . Thermal 679 | . 371 308 . Explosive 216 | . 216 . . Electromagnetic . | . . . . Impact . | . . . . Slashing . | . . . . Piercing . | . . . . Highest Corruption . | . . . . Average Corruption . | . . . . Corruption Purged . | . . . . Corruption Blocked . | . . . . Overload Shots . | . . . . Overflow Damage . | . . . . Projectiles . | . . . . Explosions . | . . . . Melee . | . . . . Knockbacks . | . . . . Impact . | . . . . Kinetic . | . . . . Secondary . | . . . . Self-Inflicted Damage 67 | . 67 . . Shots 2 | . 2 . . Rammed . | . . . . Targets Rammed 8 | . 2 6 . Kicked 8 | . 2 6 . Crushed . | . . . . Highest Temperature 313 | . 188 313 . Average Temperature 103 | . 92 123 . Received Heat Transfer 387 | . 327 60 . Siege Activations . | . . . . Robots Corrupted . | . . . . Combat Hostiles . | . . . . Parts Fried . | . . . . Impact Corruptions . | . . . . Robots Melted . | . . . . Combat Hostiles . | . . . . Parts Melted 4 | . 2 2 . Heat Transferred 1708 | . 968 740 . Parts Sabotaged . | . . . . Parts Stolen . | . . . . Parts Stripped . | . . . . Power Chain Reactions . | . . . . Alert | -11 -10 -10 -10 ------- Run | Yrd Mat Min Exi Peak Influence 263 | . 263 72 . Initial 7 | . . 7 . Average 36 | . 97 19 . Maximum Alert Level 1 | . 1 . . Low Security (%) 97 | 100 88 100 . Level 1 2 | . 11 . . Level 2 . | . . . . Level 3 . | . . . . Level 4 . | . . . . Level 5 . | . . . . High Security . | . . . . Max Security . | . . . . Squads Dispatched 2 | . 2 . . Investigation . | . . . . Extermination . | . . . . Reinforcement 2 | . 2 . . Assault . | . . . . Garrison . | . . . . Intercept . | . . . . Searches Triggered . | . . . . Construction Impeded . | . . . . Haulers Reinforced . | . . . . Active Scanning Responses . | . . . . Cargo Convoy Interrupts . | . . . . Stealth | -11 -10 -10 -10 --------- Run | Yrd Mat Min Exi Distress Signals . | . . . . Communications Jammed . | . . . . Distress Signals . | . . . . Times Spotted 31 | . 21 9 1 Peak Tracking Total 5 | . 5 3 . Tactical Retreats 1 | . . 1 . Traps | -11 -10 -10 -10 ------- Run | Yrd Mat Min Exi Traps Triggered . | . . . . Indirectly . | . . . . Trap Hack Attempts . | . . . . Triggered . | . . . . Disarmed . | . . . . Reprogrammed . | . . . . Reused . | . . . . Traps Extracted . | . . . . Installed . | . . . . Triggered . | . . . . Machines | -11 -10 -10 -10 ---------- Run | Yrd Mat Min Exi Machines Disabled 1 | . . 1 . Max in Single Turn 1 | . . 1 . Machines Repaired . | . . . . Machines Dismantled . | . . . . Machines Sabotaged . | . . . . Overloaded Fab Kills . | . . . . Hacking | -11 -10 -10 -10 --------- Run | Yrd Mat Min Exi Machines Accessed 2 | . 1 . 1 Terminals 1 | . 1 . . Fabricators . | . . . . Repair Stations . | . . . . Recycling Units . | . . . . Scanalyzers . | . . . . Garrison Access . | . . . . Total Hacks 3 | . 2 . 1 Successful 2 | . 1 . 1 Failed 1 | . 1 . . Catastrophic 1 | . 1 . . Database Lockouts . | . . . . Manual 3 | . 2 . 1 Terminals 2 | . 2 . . Fabricators . | . . . . Repair Stations . | . . . . Recycling Units . | . . . . Scanalyzers . | . . . . Garrison Access . | . . . . Terminal Hacks 2 | . 1 . 1 Hauler Manifests 1 | . 1 . . Derelict Proto ID Bank 1 | . . . 1 Fabricator Hacks . | . . . . Repair Station Hacks . | . . . . Recycling Unit Hacks . | . . . . Scanalyzer . | . . . . Garrison Access Hacks . | . . . . Unauthorized Hacks . | . . . . Terminals . | . . . . Fabricators . | . . . . Repair Stations . | . . . . Recycling Units . | . . . . Scanalyzers . | . . . . Garrison Access . | . . . . Data Cores Recovered . | . . . . Used . | . . . . Hacking Detections 1 | . 1 . . Full Trace Events . | . . . . Feedback Events . | . . . . Feedback Blocked . | . . . . Robot Schematics Acquired . | . . . . Robots Built . | . . . . Authchips . | . . . . Time . | . . . . Total Robot Build Rating . | . . . . Part Schematics Acquired . | . . . . Parts Built . | . . . . Authchips . | . . . . Time . | . . . . Total Part Build Rating . | . . . . Parts Repaired . | . . . . Time . | . . . . Parts Recycled . | . . . . Recycled Matter . | . . . . Retrieved Matter . | . . . . Retrieved Components . | . . . . Parts Scanalyzed . | . . . . Part Schematics Acquired . | . . . . Parts Damaged . | . . . . Bothacking | -11 -10 -10 -10 ------------ Run | Yrd Mat Min Exi Used RIF Installer . | . . . . Robots Hacked . | . . . . Non-combat . | . . . . Combat . | . . . . Robot Hacks Applied . | . . . . Relay Couplers Released . | . . . . Fabnet Peak Effective % . | . . . . Robots Rewired . | . . . . Allies Hacked . | . . . . Hacks Repelled . | . . . . Allies | -11 -10 -10 -10 -------- Run | Yrd Mat Min Exi Total Allies . | . . . . Largest Group . | . . . . Highest-Rated Group . | . . . . Highest-Rated Ally . | . . . . Total Orders . | . . . . Ally Attacks . | . . . . Total Damage . | . . . . Kills . | . . . . Allies Corrupted . | . . . . Allies Melted . | . . . . Intel | -11 -10 -10 -10 ------- Run | Yrd Mat Min Exi Robot Analysis Total . | . . . . Derelict Logs Recovered . | . . . . Drone Launches . | . . . . Drone Recoveries . | . . . . Exploration | -11 -10 -10 -10 ------------- Run | Yrd Mat Min Exi Turns Passed 5394 | 63 1023 3513 795 Spaces Moved 1159 | 47 403 510 199 Core 15 | 5 . 10 . Treads . | . . . . Legs 1144 | 42 403 500 199 Wheels . | . . . . Hover . | . . . . Flight . | . . . . Fastest Speed 50 | 50 120 400 400 Average Speed 440 | 112 214 664 400 Slowest Speed 1450 | 120 400 1450 400 Overloaded Moves . | . . . . Propulsion Burnouts . | . . . . Robots Hopped . | . . . . Cave-ins Triggered . | . . . . Exploration Rate (%) 49 | 3 67 86 43 Regions Visited 3 Branch Regions 2 Pre-discovered Areas . | . . . . Known Exits Taken . | . . . . Unknown Exits Taken 3 | 1 1 1 . Scrap Searched 1 | . . 1 . Spaces Dug . | . . . . Terrain Destroyed 15 | . 15 . . Melee . | . . . . Projectile . | . . . . AOE 15 | . 15 . . Terrain Rammed . | . . . . Walls Destroyed . | . . . . Machines Disabled . | . . . . Actions | -11 -10 -10 -10 --------- Run | Yrd Mat Min Exi Total 1307 | 54 494 559 200 Wait 21 | . 5 16 . Move 1156 | 46 402 509 199 Hop . | . . . . Pick Up 22 | 2 16 3 1 Fast Attach 15 | 6 7 2 . Attach 2 | . 1 1 . Detach . | . . . . Swap 2 | . 2 . . Drop 14 | . 14 . . Fire 65 | . 45 20 . Melee . | . . . . Ram . | . . . . Kick 8 | . 2 6 . Crush . | . . . . Escape Stasis . | . . . . Rewire 2 | . . 2 . Trap . | . . . . Miscellaneous . | . . . . Route ------- -11/Scrapyard -10/Materials (discovered 3 exits: [*Mat x2] / [*Min]) -10/Mines (discovered 2 exits: [*Mat] / *Exi) -10/Exiles History --------- Turn | Location | Event 3 | -11/Scrapyard | Discovered new exit (range 16) 64 | -11/Scrapyard | Entered Materials 308 | -10/Materials | Build established: Mutant 361 | -10/Materials | Core integrity fell below 50% 478 | -10/Materials | Discovered new exit (range 16) 737 | -10/Materials | Discovered new exit (range 8) 1023 | -10/Materials | Discovered new exit (range 16) 1087 | -10/Materials | Entered Mines 2768 | -10/Mines | Core integrity fell below 20% 2860 | -10/Mines | Discovered new exit (range 4) 4564 | -10/Mines | Deemed a non-threat by the Exiles lab entrance 4568 | -10/Mines | Discovered new exit (range 6) 4600 | -10/Mines | Entered Exiles 4712 | -10/Exiles | Met 8R-AWN 4764 | -10/Exiles | Met EX-HEX 4932 | -10/Exiles | Met EX-BIN 5016 | -10/Exiles | Aligned with FarCom system 5020 | -10/Exiles | Given EX-Vault access code 5136 | -10/Exiles | Opened EX-Vault 5164 | -10/Exiles | Found Lightpack 2.0 5253 | -10/Exiles | Warned to stay clear of 0b10 Research branches 5298 | -10/Exiles | Exiles lab attacked by MAIN.C 5395 | -10/Exiles | Destroyed by D-53 Grenadier with Mini Grenade Launcher Last Messages --------------- circumstances, don't worry the FarCom system will continue to maintain contact via our distributed network. EX-BIN: And don't even think about spreading that code around. We're gonna change it right after you leave. Most certainly not to something like 1234 which I did last time as a little joke and some thief managed to sneak in here and steal a few of HEX's prototypes. 05298_ EXILES: Incoming Unaware force detected on approach from Mines. Prepare for evacuation. 05324_ 8R-AWN: "We've got company!" 05328_ 8R-AWN: "I'll cover you all, get out of here!" 05333_ EXILES: Lab perimeter alert, evacuate immediately. 05341_ EX-BIN: "Not cool, MAIN.C, I don't even have my SDF Cannon ready..." 05395_ Imp. Medium Laser destroyed. Map ----- +----------------------------------------------------+ | ???????????????#" ## #???????????????????? | | ???????????????#""""""?# #?#########?????????? | | ????????????????#"###??# #?#"""""""#?????????? | | ???????????????????????# #?#"""""""#?????????? | | ???????????????????????# #?#"""""""#?????????? | | ??????????????????????## ###"" """"#?????????? | | ??????????????????????#" """"#?????????? | | ??????????????????????#" """#?????????? | | ??????????????????????#" """#?????????? | | ??????????????????????#" """#?????????? | | ??????????????????????#" """#?????????? | | ??????????????????????#" """#?????????? | | ??????????????????????## """"?????????? | | ???????????????????????# """#?????????? | | ???????????????????????#" "X" """"?????????? | | ???????????????????????#" """ #?????????? | | ???????????????????????#" """""""""#?????????? | | ??????????????????????##" ###########?????????? | | ?????????????????????##"" #???????????????????? | | ????????????????######"" #???????????????????? | | ????????????????#""""""" ##??????????????????? | | ????????????????""" " "" ##???#########?????? | | ??????????????" """ " #####"""""""""##??? | | ?????????? " " " """ """"##?? | | ?????????? z "" " #?? | | ?????????? @ " """#?? | | ?????????? " "#?? | | ?????????? " "##? | | ??????????? ""## | | ??????????? """""" """ | | ???????????? ######""" d " | | ???????????? ""#?????#####""" | | ???????????? """???????????##""" | | ????????????? ????????????????#"""" | | ??????????????????????????????#"" | | ?????????????????????????????#"""" | | ????????????????????????????"" | | ???????????????????????????" | | ??????????????????????????? | | ????????????????????????? | | ????????????????????????? " | | ????????????????????????? "" """ " | | ????????????????????????? ##""" " " ""#" " | | ????????????????????????? ???####""" """##"""""""# | | ????????????????????????????????###""""#?######### | | ??????????????????????????????????#####??????????? | | ?????????????????????????????????????????????????? | | ?????????????????????????????????????????????????? | | ?????????????????????????????????????????????????? | | ?????????????????????????????????????????????????? | +----------------------------------------------------+ Best States ------------- Heat Dissipation 25 Energy Generation 10 Energy Capacity 250 Matter Stores 300 Matter Capacity 300 Sight Range 16 Terrain Scan Density 10 Core Shielding 20 Evasion (%) 55 Item Schematics ----------------- None Robot Schematics ------------------ None Fabricated ------------ Nothing Alien Tech Used ----------------- None Achievements -------------- None Challenges ------------ None Game ------ Seed TitaniumMatterReconstructor Manual? 0 Play Time 00:08:45 Cumulative 19.7 hours Start 2024.07.15 @ 23:46:20 End 2024.07.16 @ 00:11:21 Sessions 1 Manual Loads 0 Difficulty Rogue Special Mode None Game No. 39 Rogue 39 Adventurer 0 Explorer 0 Win Type - Total 0 Types 0/0/0/0/0/0/0/0/0 Lore% 23 Gallery% 28 Achievement% 22 Wizard Run 0 Options --------- Layout 1 ASCII 0 Keyboard 0 Movement Arrows Keybinds 0 Fullscreen 1 Font 32/SmallcapsGlow Map View 50x35 Zoom Use 0% Tactical HUD 1 Map Filters NONE Filters NONE Steam 1 RUN: 4477c6a2-4d80-4e7c-95dc-62f16086e8cc